Workbook

Sheet INÍCIO
B1: Sobre o modelo
B2: Crie um Plano de Orçamento de Marketing e um Tabela de Categorias nesta pasta de trabalho.
B3: Insira categorias, quantidades e custos na tabela na planilha Plano de Orçamento de Marketing. Os custos do evento e o total geral de marketing estimado são calculados automaticamente.
B4: O gráfico de colunas agrupadas é atualizado automaticamente na planilha de tabela de categorias.
B5: Observação:
B6: Instruções adicionais foram fornecidas na coluna A nas planilhas PLANO DE ORÇAMENTO DE MARKETING e TABELA DE CATEGORIAS. Este texto foi ocultado intencionalmente. Para removê-lo, selecione a coluna A e selecione Excluir. Para reexibir o texto, selecione a coluna A e altere a cor da fonte.
B7: Para saber mais sobre tabela, pressione Shift e F10 dentro de uma tabela, selecione a opção TABELA e, em seguida, selecione TEXTO ALTERNATIVO. Para tabelas dinâmicas, pressione Shift e F10 dentro de uma tabela, selecione as opções da tabela dinâmica e, em seguida, selecione a guia TEXTO ALT.

Sheet PLANO DE ORÇAMENTO DE MARKETING
A1: Crie um plano de orçamento de marketing nesta planilha. Instruções úteis sobre como usar esta planilha estão nas células desta coluna. Pressione Seta para baixo para começar.
A2: O título desta pasta de trabalho está na célula à direita. | B2: PLANO DE ORÇAMENTO DE MARKETING
A3: A segmentação de dados para filtrar a tabela de dados por Categoria Principal está na célula E3. | E3: A segmentação de dados para filtrar a tabela de dados por Categoria Principal está nesta célula.
A4: Digite o número de participantes na célula D4. | B4: NÚMERO DE PARTICIPANTES | D4: 50
A5: Os custos do evento são calculados automaticamente na célula D5. | B5: CUSTOS DO EVENTO | D5: =SUMIF(Dados[Categoria Principal],"Evento",Dados[Subtotal estimado]) -> R$ 2,500.00
A6: O preço do evento por pessoa é calculado automaticamente na célula D6. | B6: PREÇO DO EVENTO por PESSOA | D6: =EventCosts/NumberOfAttendees -> R$ 50.00
A7: O total geral de marketing estimado é calculado automaticamente na célula D7. | B7: TOTAL GERAL ESTIMADO PARA MARKETING | D7: =SUMIF(Dados[Categoria Principal],"<>Evento",Dados[Subtotal estimado]) -> R$ 45,743.00
A8: O subtotal é calculado automaticamente na célula D8. A próxima instrução está na célula A10. | B8: SUBTOTAL | D8: =SUBTOTAL(109,Dados[Subtotal estimado]) -> R$ 48,243.00
A10: Insira os detalhes na tabela Dados, começando pela célula à direita. | B10: Categoria Principal | C10: Categoria Secundária | D10: Quantidade estimada | E10: Custo estimado por unidade | F10: Subtotal estimado | G10: Observações
B11: Pesquisa | C11: Taxas da empresa de pesquisa | D11: 2 | E11: R$ 2,300.00 | F11: =Dados[[#This Row],[Quantidade estimada]]*Dados[[#This Row],[Custo estimado por unidade]] -> R$ 4,600.00
B12: Pesquisa | C12: Pesquisa na Web | D12: 1 | E12: R$ 1,100.00 | F12: =Dados[[#This Row],[Quantidade estimada]]*Dados[[#This Row],[Custo estimado por unidade]] -> R$ 1,100.00
B13: Pesquisa | C13: Pesquisa independente | D13: 3 | E13: R$ 300.00 | F13: =Dados[[#This Row],[Quantidade estimada]]*Dados[[#This Row],[Custo estimado por unidade]] -> R$ 900.00
B14: Pesquisa | C14: Outras pesquisas | D14: 2 | E14: R$ 250.00 | F14: =Dados[[#This Row],[Quantidade estimada]]*Dados[[#This Row],[Custo estimado por unidade]] -> R$ 500.00
B15: Comunicações | C15: Folhetos promocionais | D15: 5,000 | E15: R$ 0.15 | F15: =Dados[[#This Row],[Quantidade estimada]]*Dados[[#This Row],[Custo estimado por unidade]] -> R$ 750.00
B16: Comunicações | C16: Televisão | D16: 5 | E16: R$ 4,000.00 | F16: =Dados[[#This Row],[Quantidade estimada]]*Dados[[#This Row],[Custo estimado por unidade]] -> R$ 20,000.00
B17: Comunicações | C17: Rádio | D17: 13 | E17: R$ 350.00 | F17: =Dados[[#This Row],[Quantidade estimada]]*Dados[[#This Row],[Custo estimado por unidade]] -> R$ 4,550.00
B18: Comunicações | C18: Web | D18: 1 | E18: R$ 350.00 | F18: =Dados[[#This Row],[Quantidade estimada]]*Dados[[#This Row],[Custo estimado por unidade]] -> R$ 350.00
B19: Rede | C19: Rede | F19: =Dados[[#This Row],[Quantidade estimada]]*Dados[[#This Row],[Custo estimado por unidade]] -> R$ 0.00
B20: Rede | C20: Associações | D20: 3 | E20: R$ 50.00 | F20: =Dados[[#This Row],[Quantidade estimada]]*Dados[[#This Row],[Custo estimado por unidade]] -> R$ 150.00
B21: Rede | C21: Afiliações | D21: 2 | E21: R$ 20.00 | F21: =Dados[[#This Row],[Quantidade estimada]]*Dados[[#This Row],[Custo estimado por unidade]] -> R$ 40.00
B22: Rede | C22: Assinaturas | D22: 2 | E22: R$ 32.00 | F22: =Dados[[#This Row],[Quantidade estimada]]*Dados[[#This Row],[Custo estimado por unidade]] -> R$ 64.00
B23: Evento | C23: Número de participantes | D23: 50 | F23: =Dados[[#This Row],[Quantidade estimada]]*Dados[[#This Row],[Custo estimado por unidade]] -> R$ 0.00
B24: Evento | C24: Refeição (café da manhã, almoço ou jantar) | F24: =Dados[[#This Row],[Quantidade estimada]]*Dados[[#This Row],[Custo estimado por unidade]] -> R$ 0.00
B25: Evento | C25: Alimentação | E25: R$ 23.00 | F25: =Dados[[#This Row],[Quantidade estimada]]*Dados[[#This Row],[Custo estimado por unidade]] -> R$ 0.00
B26: Evento | C26: Impostos (10%) | E26: R$ 2.30 | F26: =Dados[[#This Row],[Quantidade estimada]]*Dados[[#This Row],[Custo estimado por unidade]] -> R$ 0.00
B27: Evento | C27: Taxa de serviço para comida e bebida (20%) | E27: R$ 5.06 | F27: =Dados[[#This Row],[Quantidade estimada]]*Dados[[#This Row],[Custo estimado por unidade]] -> R$ 0.00
B28: Evento | C28: Serviço de manobrista | D28: 1 | E28: R$ 300.00 | F28: =Dados[[#This Row],[Quantidade estimada]]*Dados[[#This Row],[Custo estimado por unidade]] -> R$ 300.00
B29: Evento | C29: Entretenimento #1 | D29: 1 | E29: R$ 800.00 | F29: =Dados[[#This Row],[Quantidade estimada]]*Dados[[#This Row],[Custo estimado por unidade]] -> R$ 800.00
B30: Evento | C30: Entretenimento #2 | D30: 1 | E30: R$ 1,200.00 | F30: =Dados[[#This Row],[Quantidade estimada]]*Dados[[#This Row],[Custo estimado por unidade]] -> R$ 1,200.00
B31: Evento | C31: Outros serviços | D31: 1 | E31: R$ 200.00 | F31: =Dados[[#This Row],[Quantidade estimada]]*Dados[[#This Row],[Custo estimado por unidade]] -> R$ 200.00
B32: Serviços Visuais/Áudio | C32: Sistema básico de som e pódio | D32: 1 | E32: R$ 0.00 | F32: =Dados[[#This Row],[Quantidade estimada]]*Dados[[#This Row],[Custo estimado por unidade]] -> R$ 0.00 | G32: Fornecido pelo local (geralmente)
B33: Serviços Visuais/Áudio | C33: Tela | D33: 1 | E33: R$ 0.00 | F33: =Dados[[#This Row],[Quantidade estimada]]*Dados[[#This Row],[Custo estimado por unidade]] -> R$ 0.00 | G33: Fornecido por local (geralmente)
B34: Serviços Visuais/Áudio | C34: Aluguel de projetor de vídeo/dados XGA | D34: 1 | E34: R$ 45.00 | F34: =Dados[[#This Row],[Quantidade estimada]]*Dados[[#This Row],[Custo estimado por unidade]] -> R$ 45.00
B35: Serviços Visuais/Áudio | C35: Mouse sem fio | D35: 1 | E35: R$ 12.00 | F35: =Dados[[#This Row],[Quantidade estimada]]*Dados[[#This Row],[Custo estimado por unidade]] -> R$ 12.00
B36: Serviços Visuais/Áudio | C36: Tomada múltipla | D36: 1 | E36: R$ 0.00 | F36: =Dados[[#This Row],[Quantidade estimada]]*Dados[[#This Row],[Custo estimado por unidade]] -> R$ 0.00 | G36: Fornecido por local (geralmente)
B37: Serviços Visuais/Áudio | C37: Cabos de extensão | D37: 1 | E37: R$ 0.00 | F37: =Dados[[#This Row],[Quantidade estimada]]*Dados[[#This Row],[Custo estimado por unidade]] -> R$ 0.00 | G37: Fornecido por local (geralmente)
B38: Serviços Visuais/Áudio | C38: Microfone de lapela | D38: 1 | E38: R$ 0.00 | F38: =Dados[[#This Row],[Quantidade estimada]]*Dados[[#This Row],[Custo estimado por unidade]] -> R$ 0.00 | G38: Fornecido por local (geralmente)
B39: Serviços Visuais/Áudio | C39: Técnicos de audiovisuais e de outros serviços | D39: 1 | E39: R$ 300.00 | F39: =Dados[[#This Row],[Quantidade estimada]]*Dados[[#This Row],[Custo estimado por unidade]] -> R$ 300.00
B40: Serviços Visuais/Áudio | C40: Impostos (8,8%) | E40: R$ 31.42 | F40: =Dados[[#This Row],[Quantidade estimada]]*Dados[[#This Row],[Custo estimado por unidade]] -> R$ 0.00
B41: Custos adicionais | C41: Convite (custos de postagem e impressão) | E41: R$ 834.00 | F41: =Dados[[#This Row],[Quantidade estimada]]*Dados[[#This Row],[Custo estimado por unidade]] -> R$ 0.00
B42: Custos adicionais | C42: Tempo e Despesas (TeD) | E42: R$ 600.00 | F42: =Dados[[#This Row],[Quantidade estimada]]*Dados[[#This Row],[Custo estimado por unidade]] -> R$ 0.00
B43: Custos adicionais | C43: TeD da equipe da empresa | E43: R$ 200.00 | F43: =Dados[[#This Row],[Quantidade estimada]]*Dados[[#This Row],[Custo estimado por unidade]] -> R$ 0.00 | G43: <Número de pessoas no local>
B44: Custos adicionais | C44: Despesas de viagem do testemunho de cliente | E44: R$ 100.00 | F44: =Dados[[#This Row],[Quantidade estimada]]*Dados[[#This Row],[Custo estimado por unidade]] -> R$ 0.00
B45: Brindes promocionais | C45: Brinde promocional #1 | D45: 25 | E45: R$ 10.00 | F45: =Dados[[#This Row],[Quantidade estimada]]*Dados[[#This Row],[Custo estimado por unidade]] -> R$ 250.00 | G45: <Descrição do brinde>
B46: Brindes promocionais | C46: Brinde promocional #2 | D46: 25 | E46: R$ 5.00 | F46: =Dados[[#This Row],[Quantidade estimada]]*Dados[[#This Row],[Custo estimado por unidade]] -> R$ 125.00 | G46: <Descrição do brinde promocional>
B47: Promoções | C47: Brindes promocionais de produtos | D47: 50 | E47: R$ 8.00 | F47: =Dados[[#This Row],[Quantidade estimada]]*Dados[[#This Row],[Custo estimado por unidade]] -> R$ 400.00
B48: Promoções | C48: Descontos de produtos | D48: 300 | E48: R$ 3.00 | F48: =Dados[[#This Row],[Quantidade estimada]]*Dados[[#This Row],[Custo estimado por unidade]] -> R$ 900.00
B49: Promoções | C49: Ofertas especiais | D49: 200 | E49: R$ 2.50 | F49: =Dados[[#This Row],[Quantidade estimada]]*Dados[[#This Row],[Custo estimado por unidade]] -> R$ 500.00
B50: Publicidade | C50: Folhetos (desenvolvimento e produção) | D50: 5,000 | E50: R$ 0.15 | F50: =Dados[[#This Row],[Quantidade estimada]]*Dados[[#This Row],[Custo estimado por unidade]] -> R$ 750.00
B51: Publicidade | C51: Correspondências | D51: 15,000 | E51: R$ 0.04 | F51: =Dados[[#This Row],[Quantidade estimada]]*Dados[[#This Row],[Custo estimado por unidade]] -> R$ 600.00
B52: Publicidade | C52: Cartões-postais | D52: 15,000 | E52: R$ 0.03 | F52: =Dados[[#This Row],[Quantidade estimada]]*Dados[[#This Row],[Custo estimado por unidade]] -> R$ 450.00
B53: Publicidade | C53: Televisão | D53: 2 | E53: R$ 600.00 | F53: =Dados[[#This Row],[Quantidade estimada]]*Dados[[#This Row],[Custo estimado por unidade]] -> R$ 1,200.00
B54: Publicidade | C54: Rádio | D54: 4 | E54: R$ 300.00 | F54: =Dados[[#This Row],[Quantidade estimada]]*Dados[[#This Row],[Custo estimado por unidade]] -> R$ 1,200.00
B55: Publicidade | C55: Jornais | D55: 6 | E55: R$ 220.00 | F55: =Dados[[#This Row],[Quantidade estimada]]*Dados[[#This Row],[Custo estimado por unidade]] -> R$ 1,320.00
B56: Publicidade | C56: Outdoors | D56: 2 | E56: R$ 556.00 | F56: =Dados[[#This Row],[Quantidade estimada]]*Dados[[#This Row],[Custo estimado por unidade]] -> R$ 1,112.00
B57: Publicidade | C57: Anúncios em ônibus | D57: 3 | E57: R$ 125.00 | F57: =Dados[[#This Row],[Quantidade estimada]]*Dados[[#This Row],[Custo estimado por unidade]] -> R$ 375.00
B58: Relações públicas | C58: Eventos de caridade | D58: 3 | E58: R$ 200.00 | F58: =Dados[[#This Row],[Quantidade estimada]]*Dados[[#This Row],[Custo estimado por unidade]] -> R$ 600.00
B59: Relações públicas | C59: Publicidade | D59: 4 | E59: R$ 200.00 | F59: =Dados[[#This Row],[Quantidade estimada]]*Dados[[#This Row],[Custo estimado por unidade]] -> R$ 800.00
B60: Relações públicas | C60: Promoções para funcionários | D60: 6 | E60: R$ 200.00 | F60: =Dados[[#This Row],[Quantidade estimada]]*Dados[[#This Row],[Custo estimado por unidade]] -> R$ 1,200.00
B61: Relações públicas | C61: Patrocínios | D61: 3 | E61: R$ 200.00 | F61: =Dados[[#This Row],[Quantidade estimada]]*Dados[[#This Row],[Custo estimado por unidade]] -> R$ 600.00

Sheet TABELA DE CATEGORIAS
A1: A tabela dinâmica e o gráfico de categoria estão nesta planilha. Instruções úteis sobre como usar esta planilha estão nas células desta coluna. Pressione Seta para baixo para começar.
A2: O título desta pasta de trabalho está na célula à direita. | B2: PLANO DE ORÇAMENTO DE MARKETING
A4: Um sumário de tabela dinâmica mostrando categorias principais e seus subtotais inicia na célula C4. A próxima instrução está na célula A8. | C4: Categoria Principal
C5: Brindes promocionais | D5: Comunicações | E5: Custos adicionais | F5: Evento | G5: Pesquisa | H5: Promoções | I5: Publicidade | J5: Rede | K5: Relações públicas | L5: Serviços Visuais/Áudio | M5: Total Geral
B6: Subtotal estimado | C6: R$ 0.00 | D6: R$ 7,007.00 | E6: R$ 357.00 | F6: R$ 25,650.00 | G6: R$ 2,500.00 | H6: R$ 375.00 | I6: R$ 254.00 | J6: R$ 1,800.00 | K6: R$ 3,200.00 | L6: R$ 7,100.00 | M6: R$ 48,243.00
A8: O gráfico dinâmico da coluna mostrando as categorias principais e seus subtotais estimados está na célula à direita. | B8: O gráfico dinâmico da coluna mostrando as categorias principais e seus subtotais estimados está nesta célula.
